Cogmind - Beta 15 @@@ ROGUE MODE // 2025.06.06 @ 16:38:35 Player: CheifClapdad Result: Destroyed by G-47 Trooper with Particle Gun Performance ------------- Evolutions (0) 0 Regions Visited (2) 400 Robots Destroyed (14) 70 Value Destroyed (312) 312 Prototype IDs (0) 0 Alien Tech Used (0) 0 Bonus (0) 0 TOTAL SCORE: 782 Bonus ------- None Cogmind --------- Core Integrity 0/250 Matter 248/300 Energy 56/100 System Corruption 0% Temperature Hot (263) Movement Treading (240) Ox1 Location -10/Mines Parts ------- > --- POWER (1) -------- (None) > --- PROPULSION (2) --- Light Treads Light Treads > --- UTILITY (2) ------ High-capacity Storage Unit Shock Absorption System > --- WEAPON (2) ------- Medium Laser Medium Laser > --- INVENTORY (20) --- Wheel High-capacity Storage Unit Huge Storage Unit High-capacity Battery (250) Small Matter Pod (50) Signal Interpreter Assault Rifle Assault Rifle Peak State ------------ > --- POWER ------------ (None) > --- PROPULSION ------- Light Treads Light Treads > --- UTILITY ---------- High-capacity Storage Unit Shock Absorption System > --- WEAPON ----------- Medium Laser Medium Laser > --- INVENTORY -------- Wheel High-capacity Storage Unit Huge Storage Unit High-capacity Battery Small Matter Pod Signal Interpreter Assault Rifle Assault Rifle [Rating: 9] Favorites ----------- Power Ion Engine Engine Ion Engine Propulsion Light Treads Treads Light Treads Wheel Compact Wheel Utility Seismic Detector Device Seismic Detector Storage High-capacity Storage Unit Weapon Small Laser Energy Gun Small Laser Ballistic Gun Light Assault Rifle Build | -11 -10 -10 ------- Run | Yrd Mat Min Slots Evolved . | . . . Power . | . . . Propulsion . | . . . Utility . | . . . Weapon . | . . . Parts Attached 14 | 7 1 6 Power 2 | 1 . 1 Engine 2 | 1 . 1 Core . | . . . Reactor . | . . . Propulsion 4 | 2 . 2 Treads 2 | 1 . 1 Leg . | . . . Wheel 2 | 1 . 1 Hover . | . . . Flight . | . . . Utility 4 | 2 1 1 Device 2 | 1 . 1 Storage 2 | 1 1 . Processor . | . . . Hackware . | . . . Protection . | . . . Artifact . | . . . Weapon 4 | 2 . 2 Energy Gun 3 | 1 . 2 Energy Cannon . | . . . Ballistic Gun 1 | 1 . . Ballistic Cannon . | . . . Launcher . | . . . Special Weapon . | . . . Impact Weapon . | . . . Slashing Weapon . | . . . Piercing Weapon . | . . . Special Melee Weapon . | . . . Unidentified Prototypes . | . . . Parts Lost 7 | . . 7 Power 2 | . . 2 Propulsion 2 | . . 2 Utility 1 | . . 1 Weapon 2 | . . 2 Highest Loss Streak 7 | . . 7 To Critical Strikes . | . . . Average Backups 8 | 2 8 12 Power . | . 1 . Propulsion 2 | 1 2 2 Utility 2 | . 3 5 Weapon 1 | . 2 3 Tool/Special . | . . . Unused Backups 9 | . . 9 Power . | . . . Propulsion 1 | . . 1 Utility 6 | . . 6 Weapon 2 | . . 2 Tool/Special . | . . . Average Slot Usage (%) 98 | . 100 79 Engine 13 | . 14 8 Treads 13 | . 14 12 Wheel 14 | . 14 14 Device 13 | . 14 6 Storage 14 | . 14 14 Energy Gun 14 | . 14 16 Ballistic Gun 13 | . 14 8 Peak Build Rating 9 | 7 8 9 Average Rating 6 | 5 7 6 On Entrance 5 | . 7 8 Naked Turns . | . . . Heaviest Build 48 | 13 48 48 Greatest Support 40 | 20 16 40 Greatest Overweight (x) 4 | . 2 4 Average Overweight (x) 1 | . 1 2 Largest Inventory Capacity 20 | 8 20 20 Average Capacity 17 | 6 19 20 Most Carried 14 | 4 14 14 Average Carried 8 | 3 8 11 Final Capacity 20 | 8 20 20 Final Carried 14 | 4 14 8 Class Distribution -------------------- 100% | Mutant Dominant Class ---------------- Mutant | -10/Materials Mutant | -10/Mines Resources | -11 -10 -10 ----------- Run | Yrd Mat Min Matter Collected 352 | 232 120 . Remotely . | . . . Salvage Created 421 | 27 264 130 Parts 24 | 3 14 7 Haulers Intercepted . | . . . Recyclers Shooed 1 | . . 1 Parts Field Recycled . | . . . Retrieved Matter . | . . . Parts Self-Destructed . | . . . Prevented . | . . . Kills | -11 -10 -10 ------- Run | Yrd Mat Min Combat Hostiles Destroyed 11 | . 7 4 Guns 11 | . 7 4 Classes Destroyed 5 | 1 3 1 Tunneler 1 | 1 . . Watcher 2 | . 2 . Swarmer 5 | . 3 2 Grunt 5 | . 4 1 Demolisher 1 | . . 1 Best Kill Streak 3 | 1 3 3 Combat Bots Only 3 | . 3 3 Max Kills in Single Turn 2 | 1 2 1 Gunslinging 1 | . 1 . Exploded . | . . . Melee . | . . . Uniques/NPCs Destroyed . | . . . Combat | -11 -10 -10 -------- Run | Yrd Mat Min Hostile Shots Fired 103 | . 21 82 Missed 21 | . 8 13 Hits 82 | . 13 69 Projectile 82 | . 13 69 Critical Strikes 1 | . . 1 Damage Taken 850 | . 118 732 Core 251 | . 34 217 Absorbed by Shields . | . . . Core Remaining (%) 100 | 100 . . Volleys Fired 48 | 2 27 19 Largest 2 | 2 2 2 Hottest 100 | 60 60 100 Shots Fired 94 | 4 54 36 Gun 94 | 4 54 36 Cannon . | . . . Launcher . | . . . Special . | . . . Kinetic 39 | 2 27 10 Thermal 55 | 2 27 26 Explosive . | . . . Electromagnetic . | . . . Robot Hit Streak 8 | 1 7 8 Robot Miss Streak 3 | 2 3 3 Penetration Max . | . . . Secondary Targets 2 | . 1 1 Max Gunslinging Chain 1 | . 1 1 Shots Hit Robots 51 | 1 33 17 Core Hits 26 | 1 16 9 Critical Kills . | . . . Critical Parts Destroyed . | . . . Critical Strikes . | . . . Melee Attacks . | . . . Impact . | . . . Slashing . | . . . Piercing . | . . . Sneak Attacks . | . . . Combat Hostiles . | . . . Follow-up Attacks . | . . . Damage Inflicted 563 | 11 318 234 Guns 563 | 11 318 234 Cannons . | . . . Explosions . | . . . Melee . | . . . Ramming . | . . . Kinetic 182 | . 142 40 Thermal 381 | 11 176 194 Explosive . | . . . Electromagnetic . | . . . Impact . | . . . Slashing . | . . . Piercing . | . . . Highest Corruption . | . . . Average Corruption . | . . . Corruption Purged . | . . . Corruption Blocked . | . . . Overload Shots . | . . . Overflow Damage . | . . . Projectiles . | . . . Explosions . | . . . Melee . | . . . Knockbacks . | . . . Impact . | . . . Kinetic . | . . . Secondary . | . . . Self-Inflicted Damage . | . . . Shots . | . . . Rammed . | . . . Targets Rammed . | . . . Kicked . | . . . Crushed . | . . . Highest Temperature 271 | 20 58 271 Average Temperature 54 | 15 22 96 Received Heat Transfer 312 | . 30 282 Siege Activations . | . . . Martial Activations . | . . . Shielding Activations . | . . . Robots Disrupted . | . . . Combat Hostiles . | . . . Robots Corrupted . | . . . Combat Hostiles . | . . . Parts Fried . | . . . Impact Corruptions . | . . . Robots Melted . | . . . Combat Hostiles . | . . . Parts Melted 2 | . 1 1 Heat Transferred 957 | 25 400 532 Parts Sabotaged . | . . . Parts Stolen . | . . . Parts Stripped . | . . . Power Chain Reactions . | . . . Alert | -11 -10 -10 ------- Run | Yrd Mat Min Maximum Alert Level . | . . . Low Security (%) 100 | 100 100 100 Level 1 . | . . . Level 2 . | . . . Level 3 . | . . . Level 4 . | . . . Level 5 . | . . . High Security . | . . . Max Security . | . . . Peak Influence 82 | 5 82 60 Initial 3 | . . 3 Average 22 | . 26 15 Influence Increases 287 | 5 192 90 Destroy 0b10 Robot/C 220 | . 140 80 Destroy 0b10 Robot/NC 15 | 5 10 . Destroy Leader 44 | . 34 10 Successful Hack 8 | . 8 . Influence Decreases 237 | 5 183 49 Entered New Map 6 | . . 6 Time Decay 208 | 5 183 20 Lost Part 23 | . . 23 Squads Dispatched 2 | . 2 . Investigation 1 | . 1 . Extermination . | . . . Reinforcement 1 | . 1 . Assault . | . . . Garrison . | . . . Intercept . | . . . Searches Triggered . | . . . Construction Impeded . | . . . Haulers Reinforced . | . . . Active Scanning Responses . | . . . Cargo Convoy Interrupts . | . . . Stealth | -11 -10 -10 --------- Run | Yrd Mat Min Distress Signals . | . . . Communications Jammed . | . . . Distress Signals . | . . . Times Spotted 17 | . 10 7 Peak Tracking Total 7 | . 3 7 Tactical Retreats . | . . . Traps | -11 -10 -10 ------- Run | Yrd Mat Min Traps Triggered . | . . . Indirectly . | . . . Trap Hack Attempts . | . . . Triggered . | . . . Disarmed . | . . . Reprogrammed . | . . . Reused . | . . . Traps Extracted . | . . . Installed . | . . . Triggered . | . . . Machines | -11 -10 -10 ---------- Run | Yrd Mat Min Machines Disabled . | . . . Max in Single Turn . | . . . Machines Repaired . | . . . Machines Dismantled . | . . . Machines Sabotaged . | . . . Overloaded Fab Kills . | . . . Hacking | -11 -10 -10 --------- Run | Yrd Mat Min Machines Accessed 4 | . 4 . Terminals 4 | . 4 . Fabricators . | . . . Repair Stations . | . . . Recycling Units . | . . . Scanalyzers . | . . . Garrison Access . | . . . Total Hacks 11 | . 11 . Successful 5 | . 5 . Failed 6 | . 6 . Catastrophic 1 | . 1 . Database Lockouts . | . . . Manual 10 | . 10 . Terminals 11 | . 11 . Fabricators . | . . . Repair Stations . | . . . Recycling Units . | . . . Scanalyzers . | . . . Garrison Access . | . . . Terminal Hacks 2 | . 2 . Robot Analysis 1 | . 1 . Locate Traps 1 | . 1 . Fabricator Hacks . | . . . Repair Station Hacks . | . . . Recycling Unit Hacks . | . . . Scanalyzer . | . . . Garrison Access Hacks . | . . . Unauthorized Hacks 3 | . 3 . Terminals 3 | . 3 . Botnet 3 | . 3 . Fabricators . | . . . Repair Stations . | . . . Recycling Units . | . . . Scanalyzers . | . . . Garrison Access . | . . . Data Cores Recovered . | . . . Used . | . . . Hacking Detections 3 | . 3 . Full Trace Events 3 | . 3 . Feedback Events . | . . . Feedback Blocked . | . . . Robot Schematics Acquired . | . . . Robots Built . | . . . Authchips . | . . . Time . | . . . Total Robot Build Rating . | . . . Part Schematics Acquired . | . . . Parts Built . | . . . Authchips . | . . . Time . | . . . Total Part Build Rating . | . . . Parts Repaired . | . . . Time . | . . . Parts Recycled . | . . . Recycled Matter . | . . . Retrieved Matter . | . . . Retrieved Components . | . . . Parts Scanalyzed . | . . . Part Schematics Acquired . | . . . Parts Damaged . | . . . Bothacking | -11 -10 -10 ------------ Run | Yrd Mat Min Used RIF Installer . | . . . Robots Hacked . | . . . Non-combat . | . . . Combat . | . . . Robot Hacks Applied . | . . . Relay Couplers Released . | . . . Fabnet Peak Effective % . | . . . Robots Rewired . | . . . Allies Hacked . | . . . Hacks Repelled . | . . . Allies | -11 -10 -10 -------- Run | Yrd Mat Min Total Allies . | . . . Largest Group . | . . . Highest-Rated Group . | . . . Highest-Rated Ally . | . . . Total Orders . | . . . Ally Attacks . | . . . Total Damage . | . . . Kills . | . . . Allies Corrupted . | . . . Allies Melted . | . . . Intel | -11 -10 -10 ------- Run | Yrd Mat Min Active Infowar (turns) 757 | 12 717 28 Seismic 757 | 12 717 28 Robot Analysis Total 1 | . 1 . Derelict Logs Recovered . | . . . Drone Launches . | . . . Drone Recoveries . | . . . Exploration | -11 -10 -10 ------------- Run | Yrd Mat Min Turns Passed 898 | 113 717 68 Spaces Moved 551 | 93 454 4 Core 2 | 2 . . Treads 4 | 3 . 1 Legs . | . . . Wheels 545 | 88 454 3 Hover . | . . . Flight . | . . . Fastest Speed 50 | 50 100 130 Average Speed 122 | 100 126 162 Slowest Speed 240 | 160 130 240 Overloaded Moves . | . . . Propulsion Burnouts . | . . . Robots Hopped . | . . . Potential Cave-ins . | . . . Cave-ins Triggered . | . . . Exploration Rate (%) 22 | 5 58 4 Regions Visited 2 Branch Regions 1 Pre-discovered Areas . | . . . Known Exits Taken . | . . . Unknown Exits Taken 2 | 1 1 . Scrap Searched . | . . . Spaces Dug . | . . . Terrain Destroyed . | . . . Melee . | . . . Projectile . | . . . AOE . | . . . Terrain Rammed . | . . . Walls Destroyed . | . . . Machines Disabled . | . . . Actions | -11 -10 -10 --------- Run | Yrd Mat Min Total 682 | 105 546 31 Wait 54 | . 54 . Move 549 | 92 453 4 Hop . | . . . Pick Up 14 | 4 10 . Fast Attach 8 | 7 . 1 Attach 5 | . . 5 Detach . | . . . Swap 2 | . 1 1 Drop 2 | . 1 1 Fire 48 | 2 27 19 Melee . | . . . Ram . | . . . Kick . | . . . Crush . | . . . Escape Stasis . | . . . Rewire . | . . . Trap . | . . . Miscellaneous . | . . . Route ------- -11/Scrapyard -10/Materials (discovered 3 exits: [*Mat x2] / [*Min]) -10/Mines History --------- Turn | Location | Event 60 | -11/Scrapyard | Discovered new exit (range 15) 114 | -11/Scrapyard | Entered Materials 240 | -10/Materials | Discovered new exit (range 15) 301 | -10/Materials | Build established: Mutant 729 | -10/Materials | Discovered new exit (range 4) 760 | -10/Materials | Discovered new exit (range 10) 831 | -10/Materials | Entered Mines 832 | -10/Mines | Assembled infested the area 862 | -10/Mines | Core integrity fell below 50% 873 | -10/Mines | Core integrity fell below 20% 899 | -10/Mines | Destroyed by G-47 Trooper with Particle Gun Last Messages --------------- 00876_ Extracted 10 energy. 00878_ Flight Unit melted. 00878_ S-10 Pest destroyed. 00879_ Extracted 10 energy. 00881_ Lgt. Ion Engine destroyed. 00884_ D-53 Grenadier destroyed. 00884_ Switching to secondary target: G-34 Mercenary. 00885_ Extracted 15 energy. 00886_ K-01 Serf collects debris. 00887_ G-34 Mercenary destroyed. 00888_ Extracted 15 energy. 00889_ K-01 Serf collects debris. 00890_ as-68078 sneak attacks. 00890_ K-01 Serf destroyed. 00891_ Extracted 15 energy. 00891_ as-68078 destroyed. 00893_ Critical hit (Burn: +37). 00895_ Acquired Shock Absorption System. 00895_ R-06 Scavenger collects Sml. Laser. Map ----- +----------------------------------------------------+ | ????????????????????????????????????? | | ????????????????????????????????????? | | ????????????????????????????????????? | | ????????????????????????????????????? | | ????????????????????????????????????? | | ????????????????????????????????????? | | ????????????????????????????????????? | | ????????????????????????????????????? | | ????????????????????????????????????? | | ????????????????????????????????????? | | ?????????????? ?????????????????????? | | ?????????????? ????????????????????? | | ????????????## ????????????????????? | | ??????????## ????????????????????? | | ?????????## ????????????????????? | | ?????????? ?????????????????????? | | ?????????? ?????????????????????? | | ?????????? ?????????????????????? | | ?????????? ?????????????????????? | | ??????????? ??????????????????????? | | ??????????? ??????????????????????? | | ??????????? ??????????????????????? | | ??????????? ??????????????????????? | | ???????????# #??????????????????????? | | ???????????# #??????????????????????? | | ???????????#@##?????????????????????? | | ??????????##![##????????????????????? | | ??????????#=*%*#????????????????????? | | ??????????#%%! #????????????????????? | | ??????????##% gd ???????????????????? | | ???????????# r ?????????????????? | | ???????????# [ ??????????????? | | ??????????? ## # #?????????????? | | ???????????# #? ???????????????? | | ???????????# #??# ?????????????? | | ???????????#% #???### ##????????????? | | ??????????? #???????#?????????????? | | ???????????####?????????????????????? | | ????????????????????????????????????? | | ????????????????????????????????????? | | ????????????????????????????????????? | | ????????????????????????????????????? | | ????????????????????????????????????? | | ????????????????????????????????????? | | ????????????????????????????????????? | | ????????????????????????????????????? | | ????????????????????????????????????? | | ????????????????????????????????????? | | ????????????????????????????????????? | | ????????????????????????????????????? | +----------------------------------------------------+ Best States ------------- Heat Dissipation 25 Energy Generation 10 Energy Capacity 250 Matter Stores 300 Matter Capacity 300 Sight Range 16 Terrain Scan Density 10 Evasion (%) 40 Recoil Reduction 2 Item Schematics ----------------- None Robot Schematics ------------------ None Fabricated ------------ Nothing Repaired ---------- Nothing Alien Tech Used ----------------- None Achievements -------------- None Challenges ------------ None Game ------ Seed ExplosiveSigixSuperbattery Manual? 0 Play Time 00:08:27 Cumulative 57.4 hours Start 2025.06.06 @ 16:30:54 End 2025.06.06 @ 16:38:35 Sessions 1 Manual Loads 0 Difficulty Rogue Special Mode None Game No. 76 Rogue 76 Adventurer 0 Explorer 0 Win Type - Total 0 Types 0/0/0/0/0/0/0/0/0/0 Lore% 26 Gallery% 39 Achievement% 33 Wizard Run 0 Options --------- Layout 1 ASCII 0 Keyboard 0 Movement Arrows Keybinds 0 Fullscreen 1 Font 24/Smallcaps Map View 50x35 Zoom Use 0% Tactical HUD 1 Map Filters NONE Filters NONE Steam X RUN: bf7fbee2-d9ba-4aa3-a0ca-349eb00eb3ee